fUSD/lending_fUSD_20250412
["ID","MTS","AMOUNT","RATE_DAILY","PERIOD"]
[357743399,1744422638397,-516.0,0.0002,2]
[357743400,1744422638406,-2852841.91131972,0.0002,2]
[357743401,1744422638445,-340033.78431041,0.0002,2]
[357743408,1744422640296,-0.00539298,0.0002,2]
[357743411,1744422640378,-1662.70275232,0.0002,2]
[357743412,1744422640389,-301.47975203,0.0002,2]
[357743429,1744422643361,-222.7452131,0.000191,2]
[357743430,1744422643370,-993.77018664,0.0002,2]
[357743431,1744422643381,-2710.51331976,0.0002,2]
[357743439,1744422645790,-166.64346978,0.000199,2]
[357743440,1744422645800,-1248.80609083,0.0002,2]
[357743441,1744422645811,-918.0,0.0002,2]
[357743442,1744422645822,-1885.65006,0.0002,2]
[357743443,1744422645833,-1025.74218431,0.0002,2]
[357743444,1744422645946,-1006.75001,0.0002,2]
[357743451,1744422696916,-189.29849563,0.000191,2]
[357743452,1744422723237,-10.48250437,0.000191,2]
[357743453,1744422723260,-204.81389011,0.0001945,2]
[357743454,1744422730181,300.5,0.00033,120]
[357743455,1744423001877,179.04121,0.00033,120]
[357743456,1744423015017,179.04121,0.00033,120]
[357743457,1744423116787,-500.0,0.00019178,2]
[357743458,1744423122439,-231.61164051,0.00019178,2]
[357743459,1744423122540,-231.61164051,0.00019178,2]
[357743460,1744423130527,-187.41373131,0.00019178,2]
[357743461,1744423190498,-472.55746993,0.00019078,2]
[357743463,1744423208731,-183.38,0.00019168,2]
[357743464,1744423211091,-344.06253007,0.00019178,2]
[357743465,1744423263122,-210.09334128,0.00019177,2]
[357743466,1744423270619,-171.04043135,0.00019078,2]
[357743467,1744423283003,-137.88876865,0.00019078,2]
[357743468,1744423283026,-162.11123135,0.00019078,2]
[357743469,1744423295970,-300.0,0.00018982,2]
[357743470,1744423306220,-172.069755,0.00018982,2]
[357743471,1744423309640,-209.064018,0.00018982,2]
[357743472,1744423309663,-90.935982,0.00019078,2]
[357743473,1744423314971,-153.05,0.00019078,2]
[357743474,1744423321479,-184.86255859,0.00019077,2]
[357743475,1744423321502,-63.67425935,0.00019078,2]
[357743476,1744423329249,-184.86255857,0.00019078,2]
[357743477,1744423331905,-184.86255857,0.00019078,2]
[357743478,1744423331927,-99.46416675,0.00019078,2]
[357743479,1744423332397,358.0,0.00033,120]
[357743480,1744423345961,-559.27582578,0.00019078,2]
[357743481,1744423349497,-182.24834368,0.00019078,2]
[357743482,1744423356067,-161.10246205,0.00019078,2]
[357743484,1744423375484,-300.0,0.00018982,2]
[357743485,1744423385170,-172.069755,0.00018982,2]
[357743486,1744423385194,-97.11952889,0.00019077,2]
[357743487,1744423398397,-202.88047111,0.00019077,2]
[357743488,1744423398423,-182.19237483,0.00019078,2]
[357743489,1744423398447,-55.65132828,0.00019078,2]
[357743490,1744423442558,169.2,0.00027425,30]
[357743491,1744423444326,-300.0,0.00019077,2]
[357743492,1744423444351,-56.46888289,0.00019078,2]
[357743493,1744423502018,-150.0,0.00019078,2]
[357743494,1744423562834,-5.74646747,0.00019078,2]
[357743495,1744423562857,-474.32578614,0.00019078,2]
[357743496,1744423568759,690.76,0.00016989,2]
[357743497,1744423572445,-191.30404326,0.00019078,2]
[357743498,1744423578660,-150.0,0.00019,2]
[357743499,1744423599108,-100.0,0.00019,2]
[357743500,1744423599129,-170.83082597,0.00019078,2]
[357743501,1744423600397,-160.52535,0.00019078,2]
[357743502,1744423682171,-162.84,0.0001878,2]
[357743503,1744423682196,-130.11969276,0.00019078,2]
[357743504,1744423722392,-36.52377701,0.00019078,2]
[357743505,1744423722414,-141.88390539,0.00019078,2]
[357743506,1744423732779,-157.91,0.00019078,2]
[357743507,1744423738509,-249.56122497,0.00019078,2]
[357743508,1744423752682,-272.28985674,0.00019078,2]
[357743509,1744423759135,-29.29410753,0.00019078,2]
[357743510,1744423759165,-274.35288698,0.00019149,2]
[357743511,1744423760567,-190.79,0.00019149,2]
[357743512,1744423782433,-201.17453928,0.00018825,2]
[357743513,1744423784320,-3562.8725907,0.00018825,2]
[357743514,1744423784358,-3562.8725907,0.00018825,2]
[357743515,1744423784397,-3292.16133369,0.00018825,2]
[357743516,1744423785233,-152.03546072,0.00018825,2]
[357743517,1744423802727,-23.09348491,0.00018825,2]
[357743518,1744423802751,-181.68191869,0.00019149,2]
[357743519,1744423817559,-157.98109296,0.00019078,2]
[357743528,1744423831816,-7.79664998,0.00019078,2]
[357743530,1744423831826,-115.49519433,0.00019149,2]
[357743531,1744423831836,-300.0,0.00019167,2]
[357743533,1744423831846,-13106.03696471,0.00019168,2]
[357743534,1744423831858,-630.24830038,0.00019168,2]
[357743535,1744423831870,-2424.76396324,0.00019168,2]
[357743536,1744423831882,-11642.35769434,0.00019168,2]
[357743537,1744423831900,-2475.883476,0.00019168,2]
[357743538,1744423831958,-1541.18937342,0.00019168,2]
[357743539,1744423831981,-1913.08521425,0.00019168,2]
[357743540,1744423831991,-159.39455837,0.00019177,2]
[357743541,1744423832001,-500.0,0.00019178,2]
[357743542,1744423832011,-500.0,0.00019178,2]
[357743543,1744423832023,-726.4,0.00019178,2]
[357743544,1744423832032,-500.0,0.00019178,2]
[357743545,1744423832042,-500.0,0.00019178,2]
[357743546,1744423832051,-500.0,0.00019178,2]
[357743547,1744423832061,-500.0,0.00019178,2]
[357743548,1744423832070,-500.0,0.00019178,2]
[357743549,1744423832080,-500.0,0.00019178,2]
[357743550,1744423832089,-500.0,0.00019178,2]
[357743551,1744423832098,-500.0,0.00019178,2]
[357743552,1744423832108,-500.0,0.00019178,2]
[357743553,1744423832118,-500.0,0.00019178,2]
[357743554,1744423832127,-500.0,0.00019178,2]
[357743555,1744423832137,-334.40241578,0.00019178,2]
[357743556,1744423832222,-165.59758422,0.00019178,2]
[357743557,1744423832232,-1227.71,0.00019178,2]
[357743558,1744423832241,-579.11,0.00019178,2]
[357743559,1744423832250,-952.81905773,0.00019178,2]
[357743560,1744423832942,-1047.18094227,0.00019178,2]
[357743561,1744423832951,-390.08825255,0.00019178,2]
[357743562,1744423832962,-114.74185557,0.00019178,2]
[357743563,1744423832971,-278.80993931,0.00019178,2]
[357743564,1744423832982,-221.19006069,0.00019178,2]
[357743565,1744423832991,-500.0,0.00019178,2]
[357743566,1744423833000,-122.64096505,0.00019178,2]
[357743567,1744423833012,-377.35903495,0.00019178,2]
[357743568,1744423833021,-500.0,0.00019178,2]
[357743569,1744423833030,-518.7427639,0.00019178,2]
[357743570,1744423833039,-536.16829145,0.00019178,2]
[357743571,1744423833048,-593.86894273,0.00019178,2]
[357743572,1744423833057,-512.14408955,0.00019178,2]
[357743573,1744423833066,-500.0,0.00019178,2]
[357743574,1744423833076,-500.0,0.00019178,2]
[357743575,1744423833085,-500.0,0.00019178,2]
[357743576,1744423833094,-500.0,0.00019178,2]
[357743577,1744423833104,-500.0,0.00019178,2]
[357743578,1744423833113,-500.0,0.00019178,2]
[357743579,1744423833123,-551.45520928,0.00019178,2]
[357743580,1744423833132,-500.0,0.00019178,2]
[357743581,1744423833141,-500.0,0.00019178,2]
[357743582,1744423833151,-599.73581957,0.00019178,2]
[357743583,1744423833160,-500.0,0.00019178,2]
[357743584,1744423833169,-500.0,0.00019178,2]
[357743585,1744423833179,-515.09,0.00019178,2]
[357743586,1744423833188,-565.7417939,0.00019178,2]
[357743587,1744423833198,-500.0,0.00019178,2]
[357743588,1744423833207,-500.0,0.00019178,2]
[357743589,1744423833218,-500.0,0.00019178,2]
[357743590,1744423833228,-523.48,0.00019178,2]
[357743591,1744423833237,-612.96,0.00019178,2]
[357743592,1744423833246,-517.99901836,0.00019178,2]
[357743593,1744423833256,-500.0,0.00019178,2]
[357743594,1744423833265,-500.0,0.00019178,2]
[357743595,1744423833274,-500.0,0.00019178,2]
[357743596,1744423833284,-500.0,0.00019178,2]
[357743597,1744423833293,-69.95797222,0.00019178,2]
[357743598,1744423833331,-430.04202778,0.00019178,2]
[357743599,1744423833340,-1392.81,0.00019178,2]
[357743600,1744423833349,-63.08297222,0.00019178,2]
[357743601,1744423833362,-436.91702778,0.00019178,2]
[357743602,1744423833372,-500.0,0.00019178,2]
[357743603,1744423833381,-175.05780981,0.00019178,2]
[357743604,1744423836582,-166.64346977,0.00019078,2]
[357743605,1744423836606,-0.80671147,0.00019178,2]
[357743608,1744423837925,-324.13547872,0.00019178,2]
[357743609,1744423837935,-500.0,0.00019178,2]
[357743610,1744423837944,-500.0,0.00019178,2]
[357743611,1744423837954,-500.0,0.00019178,2]
[357743612,1744423837963,-500.0,0.00019178,2]
[357743613,1744423837973,-500.0,0.00019178,2]
[357743614,1744423837982,-509.07040619,0.00019178,2]
[357743615,1744423837991,-516.67238875,0.00019178,2]
[357743616,1744423838000,-500.0,0.00019178,2]
[357743617,1744423838010,-500.0,0.00019178,2]
[357743618,1744423838019,-474.6187236,0.00019178,2]
[357743619,1744423838031,-25.3812764,0.00019178,2]
[357743620,1744423838040,-532.15,0.00019178,2]
[357743621,1744423838049,-500.0,0.00019178,2]
[357743622,1744423838058,-216.69721063,0.00019178,2]
[357743623,1744423838070,-283.30278937,0.00019178,2]
[357743624,1744423838079,-216.69721063,0.00019178,2]
[357743625,1744423838090,-283.30278937,0.00019178,2]
[357743626,1744423838099,-185.92879185,0.00019178,2]
[357743627,1744423838111,-443.48429622,0.00019178,2]
[357743628,1744423838121,-500.0,0.00019178,2]
[357743629,1744423838130,-500.0,0.00019178,2]
[357743630,1744423838139,-500.0,0.00019178,2]
[357743631,1744423838148,-500.0,0.00019178,2]
[357743632,1744423838157,-508.21329023,0.00019178,2]
[357743633,1744423838167,-500.0,0.00019178,2]
[357743634,1744423838175,-500.0,0.00019178,2]
[357743635,1744423838184,-515.77651286,0.00019178,2]
[357743636,1744423838194,-500.0,0.00019178,2]
[357743637,1744423838203,-512.60599792,0.00019178,2]
[357743638,1744423838212,-500.0,0.00019178,2]
[357743639,1744423838225,-500.0,0.00019178,2]
[357743640,1744423838234,-500.0,0.00019178,2]
[357743641,1744423838243,-500.0,0.00019178,2]
[357743643,1744423838253,-500.0,0.00019178,2]
[357743645,1744423838262,-500.0,0.00019178,2]
[357743646,1744423838271,-646.69432521,0.00019178,2]
[357743648,1744423838281,-500.0,0.00019178,2]
[357743650,1744423838291,-500.0,0.00019178,2]
[357743652,1744423838300,-504.24755066,0.00019178,2]
[357743654,1744423838309,-500.0,0.00019178,2]
[357743656,1744423838319,-500.0,0.00019178,2]
[357743657,1744423838330,-500.0,0.00019178,2]
[357743659,1744423838340,-500.0,0.00019178,2]
[357743661,1744423838349,-500.0,0.00019178,2]
[357743663,1744423838358,-500.0,0.00019178,2]
[357743665,1744423838368,-519.78388071,0.00019178,2]
[357743667,1744423838377,-500.0,0.00019178,2]
[357743668,1744423838387,-500.0,0.00019178,2]
[357743670,1744423838396,-500.0,0.00019178,2]
[357743672,1744423838406,-500.0,0.00019178,2]
[357743674,1744423838415,-500.0,0.00019178,2]
[357743676,1744423838424,-500.0,0.00019178,2]
[357743678,1744423838434,-500.0,0.00019178,2]
[357743680,1744423838444,-500.0,0.00019178,2]
[357743682,1744423838453,-500.0,0.00019178,2]
[357743684,1744423838462,-500.0,0.00019178,2]
[357743686,1744423838473,-500.0,0.00019178,2]
[357743688,1744423838483,-500.0,0.00019178,2]
[357743690,1744423838493,-500.0,0.00019178,2]
[357743692,1744423838502,-500.0,0.00019178,2]
[357743694,1744423838511,-500.0,0.00019178,2]
[357743696,1744423838521,-500.0,0.00019178,2]
[357743698,1744423838530,-805.23,0.00019178,2]
[357743699,1744423838540,-506.05523657,0.00019178,2]
[357743700,1744423838549,-500.0,0.00019178,2]
[357743701,1744423838559,-500.0,0.00019178,2]
[357743702,1744423838568,-500.0,0.00019178,2]
[357743703,1744423838577,-500.0,0.00019178,2]
[357743704,1744423838587,-500.0,0.00019178,2]
[357743705,1744423838596,-500.0,0.00019178,2]
[357743706,1744423838606,-509.28111917,0.00019178,2]
[357743707,1744423838615,-518.44804544,0.00019178,2]
[357743708,1744423838624,-500.0,0.00019178,2]
[357743709,1744423838634,-500.0,0.00019178,2]
[357743710,1744423838643,-676.26,0.00019178,2]
[357743711,1744423838653,-500.0,0.00019178,2]
[357743712,1744423838662,-500.0,0.00019178,2]
[357743713,1744423838671,-500.0,0.00019178,2]
[357743714,1744423838681,-521.33115593,0.00019178,2]
[357743715,1744423838690,-500.0,0.00019178,2]
[357743716,1744423838699,-500.0,0.00019178,2]
[357743717,1744423838708,-403.3288635,0.00019178,2]
[357743718,1744423838717,-500.0,0.00019178,2]
[357743719,1744423838726,-500.0,0.00019178,2]
[357743720,1744423838735,-500.57887069,0.00019178,2]
[357743721,1744423838745,-500.0,0.00019178,2]
[357743722,1744423838754,-500.0,0.00019178,2]
[357743723,1744423838763,-500.0,0.00019178,2]
[357743724,1744423838772,-500.0,0.00019178,2]
[357743725,1744423838782,-500.0,0.00019178,2]
[357743726,1744423838792,-500.0,0.00019178,2]
[357743727,1744423838801,-500.0,0.00019178,2]
[357743728,1744423838811,-500.0,0.00019178,2]
[357743729,1744423838820,-500.0,0.00019178,2]
[357743730,1744423838829,-500.0,0.00019178,2]
[357743731,1744423838838,-500.0,0.00019178,2]
[357743732,1744423838847,-500.0,0.00019178,2]
[357743733,1744423838857,-500.0,0.00019178,2]
[357743734,1744423838866,-500.0,0.00019178,2]
[357743735,1744423838875,-500.0,0.00019178,2]
[357743736,1744423838884,-1914.98,0.00019178,2]
[357743737,1744423838893,-500.0,0.00019178,2]
[357743738,1744423838903,-670.71,0.00019178,2]
[357743739,1744423838912,-500.0,0.00019178,2]
[357743740,1744423838921,-539.48,0.00019178,2]
[357743741,1744423838930,-500.0,0.00019178,2]
[357743742,1744423838939,-386.36691721,0.00019178,2]
[357743743,1744423838948,-500.0,0.00019178,2]
[357743744,1744423838957,-500.0,0.00019178,2]
[357743745,1744423838966,-508.74674005,0.00019178,2]
[357743746,1744423838975,-500.0,0.00019178,2]
[357743747,1744423838984,-1098.0,0.00019178,2]
[357743748,1744423838993,-1368.84,0.00019178,2]
[357743749,1744423839003,-500.0,0.00019178,2]
[357743750,1744423839012,-500.0,0.00019178,2]
[357743751,1744423839025,-507.40259031,0.00019178,2]
[357743752,1744423839035,-500.0,0.00019178,2]
[357743753,1744423839044,-500.0,0.00019178,2]
[357743754,1744423839053,-685.35,0.00019178,2]
[357743755,1744423839063,-500.0,0.00019178,2]
[357743756,1744423839072,-499.4003518,0.00019178,2]
[357743757,1744423839082,-500.0,0.00019178,2]
[357743758,1744423839091,-500.0,0.00019178,2]
[357743759,1744423839101,-500.0,0.00019178,2]
[357743760,1744423839110,-500.0,0.00019178,2]
[357743761,1744423839120,-1542.35,0.00019178,2]
[357743762,1744423839130,-1499.38,0.00019178,2]
[357743763,1744423839139,-500.0,0.00019178,2]
[357743764,1744423839148,-339.82781843,0.00019178,2]
[357743765,1744423839158,-500.0,0.00019178,2]
[357743766,1744423839167,-500.0,0.00019178,2]
[357743767,1744423839176,-500.0,0.00019178,2]
[357743768,1744423839184,-2818.11,0.00019178,2]
[357743769,1744423839193,-507.043699,0.00019178,2]
[357743770,1744423839202,-620.13,0.00019178,2]
[357743771,1744423839211,-500.0,0.00019178,2]
[357743772,1744423839221,-500.0,0.00019178,2]
[357743773,1744423839230,-500.0,0.00019178,2]
[357743774,1744423839238,-500.0,0.00019178,2]
[357743775,1744423839247,-500.0,0.00019178,2]
[357743776,1744423839256,-500.0,0.00019178,2]
[357743777,1744423839265,-500.0,0.00019178,2]
[357743778,1744423839274,-528.32386955,0.00019178,2]
[357743779,1744423839283,-552.73,0.00019178,2]
[357743780,1744423839293,-500.0,0.00019178,2]
[357743781,1744423839303,-500.0,0.00019178,2]
[357743782,1744423839312,-500.0,0.00019178,2]
[357743783,1744423839324,-500.0,0.00019178,2]
[357743784,1744423839333,-500.0,0.00019178,2]
[357743785,1744423839343,-1193.84,0.00019178,2]
[357743786,1744423839352,-1571.81,0.00019178,2]
[357743787,1744423839363,-500.0,0.00019178,2]
[357743788,1744423839372,-500.0,0.00019178,2]
[357743789,1744423839381,-500.0,0.00019178,2]
[357743790,1744423839391,-500.0,0.00019178,2]
[357743791,1744423839403,-500.0,0.00019178,2]
[357743792,1744423839412,-500.0,0.00019178,2]
[357743793,1744423839421,-500.0,0.00019178,2]
[357743794,1744423839431,-500.0,0.00019178,2]
[357743795,1744423839440,-500.0,0.00019178,2]
[357743796,1744423839450,-500.0,0.00019178,2]
[357743797,1744423839459,-500.0,0.00019178,2]
[357743798,1744423839469,-500.0,0.00019178,2]
[357743799,1744423839479,-500.0,0.00019178,2]
[357743800,1744423839490,-500.0,0.00019178,2]
[357743801,1744423839499,-500.0,0.00019178,2]
[357743802,1744423839509,-757.8,0.00019178,2]
[357743803,1744423839519,-500.0,0.00019178,2]
[357743804,1744423839532,-500.0,0.00019178,2]
[357743805,1744423839542,-500.0,0.00019178,2]
[357743806,1744423839551,-545.72,0.00019178,2]
[357743807,1744423839560,-500.0,0.00019178,2]
[357743808,1744423839570,-1055.31,0.00019178,2]
[357743809,1744423839579,-773.59,0.00019178,2]
[357743810,1744423839589,-500.0,0.00019178,2]
[357743811,1744423839598,-500.0,0.00019178,2]
[357743812,1744423839608,-605.85,0.00019178,2]
[357743813,1744423839617,-500.0,0.00019178,2]
[357743814,1744423839626,-500.0,0.00019178,2]
[357743815,1744423839635,-500.0,0.00019178,2]
[357743816,1744423839644,-500.0,0.00019178,2]
[357743817,1744423839654,-500.0,0.00019178,2]
[357743818,1744423839663,-500.0,0.00019178,2]
[357743819,1744423839672,-500.0,0.00019178,2]
[357743820,1744423839682,-500.0,0.00019178,2]
[357743821,1744423839691,-500.0,0.00019178,2]
[357743822,1744423839701,-614.01,0.00019178,2]
[357743823,1744423839710,-500.0,0.00019178,2]
[357743824,1744423839720,-500.0,0.00019178,2]
[357743825,1744423839729,-500.0,0.00019178,2]
[357743826,1744423839738,-1663.6,0.00019178,2]
[357743827,1744423839748,-500.0,0.00019178,2]
[357743828,1744423839757,-500.0,0.00019178,2]
[357743829,1744423839766,-500.0,0.00019178,2]
[357743830,1744423839777,-500.0,0.00019178,2]
[357743831,1744423839786,-708.89,0.00019178,2]
[357743832,1744423839795,-502.29979397,0.00019178,2]
[357743833,1744423839805,-500.0,0.00019178,2]
[357743834,1744423839814,-573.24,0.00019178,2]
[357743835,1744423839823,-847.28,0.00019178,2]
[357743836,1744423839832,-500.0,0.00019178,2]
[357743837,1744423839842,-500.0,0.00019178,2]
[357743838,1744423839851,-505.28874645,0.00019178,2]
[357743839,1744423839861,-500.0,0.00019178,2]
[357743840,1744423839870,-500.0,0.00019178,2]
[357743841,1744423839879,-500.0,0.00019178,2]
[357743842,1744423839888,-500.0,0.00019178,2]
[357743843,1744423840052,-500.0,0.00019178,2]
[357743844,1744423840062,-500.0,0.00019178,2]
[357743845,1744423840071,-500.0,0.00019178,2]
[357743846,1744423840082,-500.0,0.00019178,2]
[357743847,1744423840091,-1035.55,0.00019178,2]
[357743848,1744423840100,-500.0,0.00019178,2]
[357743849,1744423840109,-500.0,0.00019178,2]
[357743850,1744423840118,-500.0,0.00019178,2]
[357743851,1744423840128,-500.0,0.00019178,2]
[357743852,1744423840137,-500.0,0.00019178,2]
[357743853,1744423840146,-500.0,0.00019178,2]
[357743854,1744423840155,-500.0,0.00019178,2]
[357743855,1744423840164,-500.0,0.00019178,2]
[357743856,1744423840174,-1817.05,0.00019178,2]
[357743857,1744423840183,-500.0,0.00019178,2]
[357743858,1744423840192,-500.0,0.00019178,2]
[357743859,1744423840203,-500.0,0.00019178,2]
[357743860,1744423840213,-720.49,0.00019178,2]
[357743861,1744423840222,-3241.88,0.00019178,2]
[357743862,1744423840232,-500.0,0.00019178,2]
[357743863,1744423840241,-500.0,0.00019178,2]
[357743864,1744423840250,-500.0,0.00019178,2]
[357743865,1744423840260,-980.61,0.00019178,2]
[357743866,1744423840269,-500.0,0.00019178,2]
[357743867,1744423840279,-327.7938576,0.00019178,2]
[357743868,1744423840288,-500.0,0.00019178,2]
[357743869,1744423840297,-500.0,0.00019178,2]
[357743870,1744423840306,-1516.15,0.00019178,2]
[357743871,1744423840316,-500.0,0.00019178,2]
[357743872,1744423840330,-500.0,0.00019178,2]
[357743873,1744423840339,-1710.68,0.00019178,2]
[357743874,1744423840348,-500.0,0.00019178,2]
[357743875,1744423840358,-500.0,0.00019178,2]
[357743876,1744423840368,-500.0,0.00019178,2]
[357743877,1744423840376,-505.95435795,0.00019178,2]
[357743878,1744423840385,-500.0,0.00019178,2]
[357743879,1744423840396,-500.0,0.00019178,2]
[357743880,1744423840406,-500.0,0.00019178,2]
[357743881,1744423840415,-500.0,0.00019178,2]
[357743882,1744423840424,-500.0,0.00019178,2]
[357743883,1744423840433,-500.0,0.00019178,2]
[357743884,1744423840442,-500.0,0.00019178,2]
[357743885,1744423840451,-500.0,0.00019178,2]
[357743886,1744423840460,-500.0,0.00019178,2]
[357743887,1744423840469,-1190.51,0.00019178,2]
[357743888,1744423840478,-500.0,0.00019178,2]
[357743889,1744423840488,-500.0,0.00019178,2]
[357743890,1744423840498,-2855.11,0.00019178,2]
[357743891,1744423840507,-3060.29,0.00019178,2]
[357743892,1744423840516,-678.15,0.00019178,2]
[357743893,1744423840525,-500.0,0.00019178,2]
[357743894,1744423840534,-500.0,0.00019178,2]
[357743895,1744423840543,-1673.54,0.00019178,2]
[357743896,1744423840552,-500.0,0.00019178,2]
[357743897,1744423840561,-500.0,0.00019178,2]
[357743898,1744423840570,-500.0,0.00019178,2]
[357743899,1744423840579,-500.0,0.00019178,2]
[357743900,1744423840588,-678.1,0.00019178,2]
[357743901,1744423840598,-500.0,0.00019178,2]
[357743903,1744423840607,-500.0,0.00019178,2]
[357743904,1744423840616,-500.0,0.00019178,2]
[357743905,1744423840625,-500.0,0.00019178,2]
[357743907,1744423840634,-500.0,0.00019178,2]
[357743908,1744423840644,-500.0,0.00019178,2]
[357743910,1744423840653,-500.0,0.00019178,2]
[357743912,1744423840663,-500.0,0.00019178,2]
[357743914,1744423840672,-500.0,0.00019178,2]
[357743916,1744423840682,-500.0,0.00019178,2]
[357743918,1744423840692,-2722.69,0.00019178,2]
[357743920,1744423840704,-500.0,0.00019178,2]
[357743922,1744423840713,-500.0,0.00019178,2]
[357743923,1744423840722,-500.0,0.00019178,2]
[357743924,1744423840732,-500.0,0.00019178,2]
[357743925,1744423840741,-500.0,0.00019178,2]
[357743926,1744423840751,-1939.61,0.00019178,2]
[357743927,1744423840761,-500.0,0.00019178,2]
[357743928,1744423840770,-500.0,0.00019178,2]
[357743929,1744423840780,-500.0,0.00019178,2]
[357743930,1744423840789,-500.0,0.00019178,2]
[357743931,1744423840798,-500.0,0.00019178,2]
[357743932,1744423840808,-500.0,0.00019178,2]
[357743933,1744423840817,-511.32908508,0.00019178,2]
[357743934,1744423840826,-743.84,0.00019178,2]
[357743935,1744423840836,-1659.95,0.00019178,2]
[357743936,1744423840845,-500.0,0.00019178,2]
[357743937,1744423840855,-588.82,0.00019178,2]
[357743938,1744423840864,-449.55702402,0.00019178,2]
[357743939,1744423840874,-500.0,0.00019178,2]
[357743940,1744423840883,-500.0,0.00019178,2]
[357743941,1744423840893,-1252.46,0.00019178,2]
[357743942,1744423840903,-500.0,0.00019178,2]
[357743943,1744423840913,-500.0,0.00019178,2]
[357743944,1744423840923,-500.0,0.00019178,2]
[357743945,1744423840933,-500.0,0.00019178,2]
[357743946,1744423840945,-500.0,0.00019178,2]
[357743947,1744423840955,-541.3621949,0.00019178,2]
[357743948,1744423840965,-500.0,0.00019178,2]
[357743949,1744423840975,-500.0,0.00019178,2]
[357743950,1744423840985,-1539.41,0.00019178,2]
[357743951,1744423840994,-1986.29,0.00019178,2]
[357743952,1744423841003,-500.0,0.00019178,2]
[357743953,1744423841014,-726.31,0.00019178,2]
[357743954,1744423841023,-500.0,0.00019178,2]
[357743955,1744423841033,-500.0,0.00019178,2]
[357743956,1744423841043,-500.0,0.00019178,2]
[357743957,1744423841053,-500.0,0.00019178,2]
[357743958,1744423841063,-500.0,0.00019178,2]
[357743959,1744423841073,-1198.74,0.00019178,2]
[357743960,1744423841082,-500.0,0.00019178,2]
[357743961,1744423841092,-500.0,0.00019178,2]
[357743962,1744423841102,-500.0,0.00019178,2]
[357743963,1744423841112,-500.0,0.00019178,2]
[357743964,1744423841125,-500.0,0.00019178,2]
[357743965,1744423841135,-500.0,0.00019178,2]
[357743966,1744423841145,-500.0,0.00019178,2]
[357743967,1744423841155,-500.0,0.00019178,2]
[357743968,1744423841164,-551.52,0.00019178,2]
[357743969,1744423841173,-500.0,0.00019178,2]
[357743970,1744423841184,-1852.77,0.00019178,2]
[357743971,1744423841195,-545.11,0.00019178,2]
[357743972,1744423841205,-500.0,0.00019178,2]
[357743973,1744423841214,-500.0,0.00019178,2]
[357743974,1744423841224,-500.0,0.00019178,2]
[357743975,1744423841233,-500.0,0.00019178,2]
[357743976,1744423841243,-500.0,0.00019178,2]
[357743977,1744423841252,-500.0,0.00019178,2]
[357743978,1744423841262,-525.42492583,0.00019178,2]
[357743979,1744423841271,-500.0,0.00019178,2]
[357743980,1744423841281,-500.0,0.00019178,2]
[357743981,1744423841290,-500.0,0.00019178,2]
[357743982,1744423841301,-500.0,0.00019178,2]
[357743983,1744423841310,-417.844344,0.00019178,2]
[357743984,1744423841322,-500.0,0.00019178,2]
[357743985,1744423841334,-500.0,0.00019178,2]